[Event "*** SCC Grand Prix: Titled Tuesday Blitz"]
[Site "Chess.com"]
[Date "2020.08.25"]
[Round "2"]
[White "Miss_JJ20"]
[Black "INDIAN-ELEPHANT"]
[Result "1-0"]
[WhiteElo "2406"]
[BlackElo "2673"]
[TimeControl "180+1"]
[EndTime "10:18:05 PDT"]
[Termination "Miss_JJ20 won by resignation"]

1. d4 {[%clk 0:03:00.9]} 1... Nf6 {[%clk 0:02:59.8]} 2. c4 {[%clk 0:03:01]} 2...
e6 {[%clk 0:03:00]} 3. g3 {[%clk 0:03:00.9]} 3... d5 {[%clk 0:03:00]} 4. Nf3
{[%clk 0:03:01.6]} 4... Bb4+ {[%clk 0:03:00]} 5. Bd2 {[%clk 0:03:00.7]} 5... Be7
{[%clk 0:03:00.1]} 6. Bg2 {[%clk 0:03:00.1]} 6... O-O {[%clk 0:03:00]} 7. O-O
{[%clk 0:03:00.6]} 7... c6 {[%clk 0:03:00.3]} 8. Bf4 {[%clk 0:02:58.8]} 8... b6
{[%clk 0:03:00.3]} 9. Nfd2 {[%clk 0:02:51.4]} 9... Ba6 {[%clk 0:02:57.2]} 10. b3
{[%clk 0:02:42.1]} 10... Nbd7 {[%clk 0:02:50.8]} 11. Nc3 {[%clk 0:02:36.3]}
11... Rc8 {[%clk 0:02:48.4]} 12. e4 {[%clk 0:02:31.3]} 12... Bb4 {[%clk
0:02:39]} 13. Rc1 {[%clk 0:02:26]} 13... Bxc3 {[%clk 0:02:35.3]} 14. Rxc3 {[%clk
0:02:25.1]} 14... c5 {[%clk 0:02:36.2]} 15. dxc5 {[%clk 0:02:19]} 15... d4
{[%clk 0:02:32.5]} 16. Rc1 {[%clk 0:02:13.9]} 16... Nxc5 {[%clk 0:02:26.5]} 17.
e5 {[%clk 0:02:13.1]} 17... Nfd7 {[%clk 0:02:25.7]} 18. Ne4 {[%clk 0:02:13.7]}
18... Nxe4 {[%clk 0:02:25.3]} 19. Bxe4 {[%clk 0:02:13.1]} 19... Nc5 {[%clk
0:02:26.2]} 20. Bg2 {[%clk 0:01:48.9]} 20... b5 {[%clk 0:02:26.1]} 21. b4 {[%clk
0:01:33.3]} 21... Na4 {[%clk 0:02:26.2]} 22. c5 {[%clk 0:01:33.9]} 22... Nb2
{[%clk 0:02:26.5]} 23. Qd2 {[%clk 0:01:34.5]} 23... Nc4 {[%clk 0:02:26.6]} 24.
Qd3 {[%clk 0:01:30.6]} 24... g5 {[%clk 0:02:26.5]} 25. Bd2 {[%clk 0:01:22.3]}
25... Nxe5 {[%clk 0:02:26.8]} 26. Qe4 {[%clk 0:01:18.5]} 26... Nc4 {[%clk
0:02:26.4]} 27. Rfd1 {[%clk 0:01:18.2]} 27... Qf6 {[%clk 0:02:23.9]} 28. f4
{[%clk 0:01:08.6]} 28... g4 {[%clk 0:02:22.8]} 29. Be1 {[%clk 0:01:05.7]} 29...
Rfd8 {[%clk 0:02:22.1]} 30. Bf2 {[%clk 0:01:05]} 30... Ne3 {[%clk 0:02:04.4]}
31. Bxe3 {[%clk 0:00:59.8]} 31... dxe3 {[%clk 0:02:05.3]} 32. Qxe3 {[%clk
0:01:00.2]} 32... Qb2 {[%clk 0:02:04.5]} 33. a3 {[%clk 0:00:47.1]} 33... Qf6
{[%clk 0:01:53.2]} 34. Qe5 {[%clk 0:00:44.3]} 34... Qxe5 {[%clk 0:01:51.5]} 35.
fxe5 {[%clk 0:00:45.2]} 35... Kf8 {[%clk 0:01:52.4]} 36. Rd6 {[%clk 0:00:37.4]}
36... Rxd6 {[%clk 0:01:52.4]} 37. exd6 {[%clk 0:00:38.2]} 37... Ke8 {[%clk
0:01:50.9]} 38. Kf2 {[%clk 0:00:38.4]} 38... Kd7 {[%clk 0:01:50.7]} 39. Ke3
{[%clk 0:00:36.5]} 39... e5 {[%clk 0:01:50.3]} 40. Rf1 {[%clk 0:00:32.6]} 40...
Ke6 {[%clk 0:01:50.2]} 41. Be4 {[%clk 0:00:31.6]} 41... Rh8 {[%clk 0:01:48.4]}
42. Bf5+ {[%clk 0:00:25.7]} 42... Kd5 {[%clk 0:01:48.6]} 43. Rd1+ {[%clk
0:00:25.5]} 43... Kc6 {[%clk 0:01:48.1]} 44. Bxg4 {[%clk 0:00:22.3]} 44... h6
{[%clk 0:01:48.1]} 45. Bf3+ {[%clk 0:00:21.7]} 45... Kd7 {[%clk 0:01:48.2]} 46.
c6+ {[%clk 0:00:21.8]} 46... Ke6 {[%clk 0:01:48.7]} 47. d7 {[%clk 0:00:18.2]}
47... Ke7 {[%clk 0:01:48.7]} 48. c7 {[%clk 0:00:17.4]} 1-0

[Event "*** SCC Grand Prix: Titled Tuesday Blitz"]
[Site "Chess.com"]
[Date "2020.08.25"]
[Round "2"]
[White "ruslansezdbekov"]
[Black "PSvidler"]
[Result "0-1"]
[WhiteElo "2568"]
[BlackElo "2964"]
[TimeControl "180+1"]
[EndTime "10:18:11 PDT"]
[Termination "PSvidler won by resignation"]

1. e4 {[%clk 0:02:53.8]} 1... c5 {[%clk 0:02:56.4]} 2. Nf3 {[%clk 0:02:52.6]}
2... d6 {[%clk 0:02:42.6]} 3. c3 {[%clk 0:02:51.5]} 3... Nf6 {[%clk 0:02:38.4]}
4. Be2 {[%clk 0:02:49]} 4... Nbd7 {[%clk 0:02:35.5]} 5. Qc2 {[%clk 0:02:47.2]}
5... Qc7 {[%clk 0:02:34.1]} 6. O-O {[%clk 0:02:46.5]} 6... g6 {[%clk 0:02:33.9]}
7. Na3 {[%clk 0:02:45.6]} 7... a6 {[%clk 0:02:28.8]} 8. d4 {[%clk 0:02:45.3]}
8... cxd4 {[%clk 0:02:28.5]} 9. Nxd4 {[%clk 0:02:45.2]} 9... Bg7 {[%clk
0:02:28.4]} 10. Bf3 {[%clk 0:02:44.6]} 10... O-O {[%clk 0:02:22.1]} 11. Be3
{[%clk 0:02:44.3]} 11... e5 {[%clk 0:02:03.8]} 12. Ne2 {[%clk 0:02:38]} 12... b5
{[%clk 0:01:54.6]} 13. Rad1 {[%clk 0:02:35.4]} 13... Rd8 {[%clk 0:01:51.7]} 14.
h3 {[%clk 0:02:26.3]} 14... Bb7 {[%clk 0:01:42.9]} 15. b4 {[%clk 0:02:18.1]}
15... Rac8 {[%clk 0:01:41.8]} 16. c4 {[%clk 0:02:09.6]} 16... bxc4 {[%clk
0:01:12]} 17. Nc3 {[%clk 0:02:07]} 17... Bf8 {[%clk 0:01:11.7]} 18. Nd5 {[%clk
0:02:01.9]} 18... Bxd5 {[%clk 0:01:09.8]} 19. exd5 {[%clk 0:02:00.6]} 19... Nb6
{[%clk 0:01:09.4]} 20. Bg5 {[%clk 0:01:56.8]} 20... Be7 {[%clk 0:01:05.7]} 21.
Bxf6 {[%clk 0:01:50.8]} 21... Bxf6 {[%clk 0:01:05.6]} 22. Nb1 {[%clk 0:01:50.9]}
22... c3 {[%clk 0:00:58.8]} 23. Rd3 {[%clk 0:01:49.7]} 23... e4 {[%clk
0:00:58.5]} 24. Bxe4 {[%clk 0:01:47.7]} 24... Qc4 {[%clk 0:00:58.3]} 25. Rf3
{[%clk 0:01:42.8]} 25... Bg7 {[%clk 0:00:57.7]} 26. a3 {[%clk 0:01:38.9]} 26...
Nxd5 {[%clk 0:00:49.5]} 27. Bxd5 {[%clk 0:01:35.6]} 27... Qxd5 {[%clk
0:00:49.5]} 28. Rd1 {[%clk 0:01:31.9]} 28... Qc4 {[%clk 0:00:47.4]} 29. Rdd3
{[%clk 0:01:26.2]} 29... d5 {[%clk 0:00:47.1]} 30. Nxc3 {[%clk 0:01:17.1]} 30...
d4 {[%clk 0:00:47]} 31. Qd1 {[%clk 0:01:14.8]} 31... Qxc3 {[%clk 0:00:43.7]} 32.
Rxc3 {[%clk 0:01:12.9]} 32... dxc3 {[%clk 0:00:43.7]} 33. Qc2 {[%clk 0:01:11.1]}
33... Rd2 {[%clk 0:00:43.2]} 34. Qc1 {[%clk 0:01:10.6]} 34... c2 {[%clk
0:00:43.1]} 35. Qxd2 {[%clk 0:01:05.6]} 35... c1=Q+ {[%clk 0:00:42]} 36. Qxc1
{[%clk 0:01:06.5]} 36... Rxc1+ {[%clk 0:00:42.4]} 37. Kh2 {[%clk 0:01:06]} 37...
Rc3 {[%clk 0:00:43]} 0-1

[Event "*** SCC Grand Prix: Titled Tuesday Blitz"]
[Site "Chess.com"]
[Date "2020.08.25"]
[Round "2"]
[White "chigorin28"]
[Black "GregShahade"]
[Result "1/2-1/2"]
[WhiteElo "2468"]
[BlackElo "2680"]
[TimeControl "180+1"]
[EndTime "10:18:11 PDT"]
[Termination "Game drawn by repetition"]

1. e4 {[%clk 0:03:00.9]} 1... e5 {[%clk 0:03:00.2]} 2. Nf3 {[%clk 0:03:00.7]}
2... Nc6 {[%clk 0:03:00.7]} 3. Bc4 {[%clk 0:03:01]} 3... Nf6 {[%clk 0:03:00.4]}
4. d3 {[%clk 0:03:01.6]} 4... Bc5 {[%clk 0:03:00.2]} 5. O-O {[%clk 0:03:02]}
5... a6 {[%clk 0:02:59.7]} 6. c3 {[%clk 0:03:01.5]} 6... d6 {[%clk 0:02:58.1]}
7. Bb3 {[%clk 0:03:01.9]} 7... Ba7 {[%clk 0:02:58.2]} 8. Nbd2 {[%clk 0:02:59.5]}
8... O-O {[%clk 0:02:58.4]} 9. h3 {[%clk 0:02:57.9]} 9... h6 {[%clk 0:02:58.1]}
10. Re1 {[%clk 0:02:58]} 10... Re8 {[%clk 0:02:58.1]} 11. Nf1 {[%clk 0:02:58.2]}
11... Be6 {[%clk 0:02:58.5]} 12. Ng3 {[%clk 0:02:57.6]} 12... d5 {[%clk
0:02:57.7]} 13. Qe2 {[%clk 0:02:57.8]} 13... Qd7 {[%clk 0:02:53.8]} 14. Bc2
{[%clk 0:02:51.6]} 14... Rad8 {[%clk 0:02:47.6]} 15. Nh4 {[%clk 0:02:47.9]}
15... dxe4 {[%clk 0:02:28.5]} 16. dxe4 {[%clk 0:02:46.8]} 16... Bxh3 {[%clk
0:02:28.4]} 17. gxh3 {[%clk 0:02:46.3]} 17... Qxh3 {[%clk 0:02:29.3]} 18. Nhf5
{[%clk 0:01:10.8]} 18... Ng4 {[%clk 0:02:27.9]} 19. Ne3 {[%clk 0:00:40.6]} 19...
Qh2+ {[%clk 0:02:11.1]} 20. Kf1 {[%clk 0:00:40.2]} 20... Qh3+ {[%clk 0:02:11.4]}
21. Kg1 {[%clk 0:00:40.5]} 21... Bxe3 {[%clk 0:00:22.8]} 22. Bxe3 {[%clk
0:00:39.6]} 22... Qh2+ {[%clk 0:00:15.7]} 23. Kf1 {[%clk 0:00:39.3]} 23... Qh3+
{[%clk 0:00:16.5]} 24. Kg1 {[%clk 0:00:39.8]} 24... Qh2+ {[%clk 0:00:16.5]} 25.
Kf1 {[%clk 0:00:40.1]} 25... Qh3+ {[%clk 0:00:17.2]} 26. Kg1 {[%clk 0:00:40.6]}
1/2-1/2

[Event "*** SCC Grand Prix: Titled Tuesday Blitz"]
[Site "Chess.com"]
[Date "2020.08.25"]
[Round "2"]
[White "filali-marouan"]
[Black "PattyCastillo"]
[Result "1-0"]
[WhiteElo "2351"]
[BlackElo "1908"]
[TimeControl "180+1"]
[EndTime "10:18:11 PDT"]
[Termination "filali-marouan won by resignation"]

1. e4 {[%clk 0:03:00.9]} 1... c5 {[%clk 0:02:59.5]} 2. Nf3 {[%clk 0:03:00.2]}
2... d6 {[%clk 0:02:59.3]} 3. d4 {[%clk 0:02:58.8]} 3... cxd4 {[%clk 0:02:59.5]}
4. Nxd4 {[%clk 0:02:59.7]} 4... Nf6 {[%clk 0:02:59.7]} 5. Nc3 {[%clk 0:02:50.7]}
5... a6 {[%clk 0:02:59.6]} 6. Be2 {[%clk 0:02:47.4]} 6... e5 {[%clk 0:02:58.3]}
7. Nb3 {[%clk 0:02:45.9]} 7... Be7 {[%clk 0:02:57]} 8. O-O {[%clk 0:02:46.1]}
8... Be6 {[%clk 0:02:56.4]} 9. Kh1 {[%clk 0:02:46.5]} 9... Nbd7 {[%clk
0:02:53.8]} 10. f4 {[%clk 0:02:46.8]} 10... exf4 {[%clk 0:02:48]} 11. Bxf4
{[%clk 0:02:47.7]} 11... Qc7 {[%clk 0:02:28.3]} 12. Nd4 {[%clk 0:02:23.7]} 12...
O-O {[%clk 0:02:15.8]} 13. a4 {[%clk 0:02:13.1]} 13... Rac8 {[%clk 0:02:13.1]}
14. Nd5 {[%clk 0:02:03.8]} 14... Bxd5 {[%clk 0:02:08.2]} 15. exd5 {[%clk
0:02:04.7]} 15... Nb6 {[%clk 0:01:51.9]} 16. Nf5 {[%clk 0:02:02.8]} 16... Rfe8
{[%clk 0:01:49]} 17. c4 {[%clk 0:01:31]} 17... Bf8 {[%clk 0:01:42.6]} 18. Bd3
{[%clk 0:01:25.6]} 18... Nxc4 {[%clk 0:01:41.3]} 19. Rc1 {[%clk 0:01:23.4]}
19... Nxb2 {[%clk 0:01:25.5]} 20. Rxc7 {[%clk 0:01:21.1]} 20... Nxd1 {[%clk
0:01:24.8]} 21. Rxc8 {[%clk 0:01:19.7]} 21... Nf2+ {[%clk 0:01:20]} 22. Rxf2
{[%clk 0:01:19.7]} 22... Rxc8 {[%clk 0:01:18.5]} 23. h3 {[%clk 0:01:10.1]} 23...
Nxd5 {[%clk 0:01:17.2]} 24. Bxd6 {[%clk 0:01:10.1]} 24... Rc1+ {[%clk
0:01:12.9]} 25. Kh2 {[%clk 0:01:08.3]} 25... Bxd6+ {[%clk 0:01:00.5]} 26. Nxd6
{[%clk 0:01:09.2]} 26... Nb4 {[%clk 0:00:52.6]} 27. Bc4 {[%clk 0:01:04.3]} 27...
Rc2 {[%clk 0:00:39.8]} 28. Rxf7 {[%clk 0:00:59.3]} 28... h6 {[%clk 0:00:35]} 29.
Rf2+ {[%clk 0:00:53.2]} 29... Kh7 {[%clk 0:00:32.5]} 30. Bd3+ {[%clk 0:00:48.5]}
30... Nxd3 {[%clk 0:00:31.6]} 31. Rxc2 {[%clk 0:00:46.5]} 1-0

[Event "*** SCC Grand Prix: Titled Tuesday Blitz"]
[Site "Chess.com"]
[Date "2020.08.25"]
[Round "2"]
[White "mishanick"]
[Black "tsvet2005"]
[Result "1-0"]
[WhiteElo "2972"]
[BlackElo "2574"]
[TimeControl "180+1"]
[EndTime "10:18:14 PDT"]
[Termination "mishanick won by resignation"]

1. d4 {[%clk 0:03:00.9]} 1... d5 {[%clk 0:03:00]} 2. c4 {[%clk 0:02:58.8]} 2...
e6 {[%clk 0:03:00.3]} 3. Nf3 {[%clk 0:02:59.4]} 3... Nf6 {[%clk 0:03:00.2]} 4.
Nc3 {[%clk 0:03:00]} 4... c6 {[%clk 0:03:00.2]} 5. Bg5 {[%clk 0:02:59.7]} 5...
h6 {[%clk 0:03:00.3]} 6. Bh4 {[%clk 0:03:00.2]} 6... dxc4 {[%clk 0:02:59.5]} 7.
e4 {[%clk 0:03:00.8]} 7... g5 {[%clk 0:02:59.9]} 8. Bg3 {[%clk 0:03:01.4]} 8...
b5 {[%clk 0:03:00.2]} 9. h4 {[%clk 0:03:00.5]} 9... g4 {[%clk 0:02:57.5]} 10.
Ne5 {[%clk 0:03:01]} 10... Nbd7 {[%clk 0:02:57.6]} 11. Nxc6 {[%clk 0:03:01]}
11... Qb6 {[%clk 0:02:57.4]} 12. d5 {[%clk 0:03:01.5]} 12... Bb7 {[%clk
0:02:55.4]} 13. a4 {[%clk 0:03:02]} 13... a6 {[%clk 0:02:54.7]} 14. Be2 {[%clk
0:03:02.2]} 14... Bxc6 {[%clk 0:02:22.4]} 15. dxc6 {[%clk 0:03:03.1]} 15... Qxc6
{[%clk 0:02:23.3]} 16. axb5 {[%clk 0:03:03.1]} 16... axb5 {[%clk 0:02:24.2]} 17.
Rxa8+ {[%clk 0:03:03.2]} 17... Qxa8 {[%clk 0:02:25.1]} 18. O-O {[%clk
0:03:03.4]} 18... Qc6 {[%clk 0:01:44.2]} 19. e5 {[%clk 0:03:02.6]} 19... Nd5
{[%clk 0:01:44.1]} 20. Bxg4 {[%clk 0:02:48.4]} 20... Nxc3 {[%clk 0:01:31.4]} 21.
bxc3 {[%clk 0:02:49.3]} 21... Bc5 {[%clk 0:01:31]} 22. Qd2 {[%clk 0:02:40]}
22... Rg8 {[%clk 0:01:25.2]} 23. Bf3 {[%clk 0:02:38.8]} 23... Qc7 {[%clk
0:01:23.1]} 24. Qf4 {[%clk 0:02:14.1]} 24... b4 {[%clk 0:01:09.4]} 25. cxb4
{[%clk 0:02:09.5]} 25... Bxb4 {[%clk 0:01:10.3]} 26. Rb1 {[%clk 0:02:08.7]}
26... Bc5 {[%clk 0:01:07.1]} 27. Rb7 {[%clk 0:01:44.3]} 27... Qc8 {[%clk
0:01:05.6]} 28. Kh1 {[%clk 0:01:39.3]} 28... c3 {[%clk 0:00:35.5]} 29. Qc4
{[%clk 0:01:34.7]} 29... c2 {[%clk 0:00:11]} 30. Qxc2 {[%clk 0:01:30.6]} 30...
Rxg3 {[%clk 0:00:11.5]} 31. fxg3 {[%clk 0:01:26.6]} 31... Nxe5 {[%clk 0:00:12]}
32. Qh7 {[%clk 0:01:21.3]} 32... Qd8 {[%clk 0:00:07]} 33. Qh8+ {[%clk
0:01:19.5]} 33... Bf8 {[%clk 0:00:07]} 34. Qxe5 {[%clk 0:01:14.3]} 1-0

[Event "*** SCC Grand Prix: Titled Tuesday Blitz"]
[Site "Chess.com"]
[Date "2020.08.25"]
[Round "2"]
[White "shineatchess"]
[Black "SaqoChess_Twitch"]
[Result "0-1"]
[WhiteElo "2208"]
[BlackElo "2432"]
[TimeControl "180+1"]
[EndTime "10:18:15 PDT"]
[Termination "SaqoChess_Twitch won by resignation"]

1. Nf3 {[%clk 0:03:00.9]} 1... d5 {[%clk 0:02:59.7]} 2. Rg1 {[%clk 0:02:59.8]}
2... Nf6 {[%clk 0:02:57.6]} 3. b3 {[%clk 0:02:59.4]} 3... c5 {[%clk 0:02:55.8]}
4. Bb2 {[%clk 0:02:58.9]} 4... Nc6 {[%clk 0:02:56.3]} 5. e3 {[%clk 0:02:57.8]}
5... h6 {[%clk 0:02:53.6]} 6. Be2 {[%clk 0:02:52.1]} 6... Qc7 {[%clk 0:02:52.3]}
7. d3 {[%clk 0:02:41.2]} 7... e5 {[%clk 0:02:52.2]} 8. h3 {[%clk 0:02:24]} 8...
e4 {[%clk 0:02:50.7]} 9. Nfd2 {[%clk 0:02:22]} 9... exd3 {[%clk 0:02:50.2]} 10.
Bxd3 {[%clk 0:02:16.5]} 10... Be7 {[%clk 0:02:50.1]} 11. Nc3 {[%clk 0:02:12]}
11... Be6 {[%clk 0:02:48.5]} 12. Qf3 {[%clk 0:02:07.3]} 12... a6 {[%clk
0:02:43.4]} 13. Ne2 {[%clk 0:02:00.6]} 13... Ne5 {[%clk 0:02:42.3]} 14. Qf4
{[%clk 0:01:47.4]} 14... Nxd3+ {[%clk 0:02:41.3]} 15. cxd3 {[%clk 0:01:47.6]}
15... Qxf4 {[%clk 0:02:42.2]} 16. Nxf4 {[%clk 0:01:48.3]} 16... Bd6 {[%clk
0:02:40.6]} 17. Bxf6 {[%clk 0:01:45]} 17... gxf6 {[%clk 0:02:40.2]} 18. Nh5
{[%clk 0:01:43.3]} 18... Ke7 {[%clk 0:02:39.2]} 19. f4 {[%clk 0:01:37.9]} 19...
f5 {[%clk 0:02:37.9]} 20. Ke2 {[%clk 0:01:27.3]} 20... Rag8 {[%clk 0:02:35]} 21.
Kf3 {[%clk 0:01:20.4]} 21... Rg6 {[%clk 0:02:28.1]} 22. e4 {[%clk 0:01:06.7]}
22... fxe4+ {[%clk 0:02:21.3]} 23. dxe4 {[%clk 0:01:05.5]} 23... dxe4+ {[%clk
0:02:21.3]} 24. Nxe4 {[%clk 0:00:57.2]} 24... Bd5 {[%clk 0:02:17]} 25. Rae1
{[%clk 0:00:56.7]} 25... f5 {[%clk 0:02:14.6]} 26. g4 {[%clk 0:00:43.4]} 26...
fxe4+ {[%clk 0:02:12]} 27. Ke2 {[%clk 0:00:37.3]} 27... Rf8 {[%clk 0:02:07.5]}
28. Rd1 {[%clk 0:00:35.6]} 28... Bc6 {[%clk 0:02:02.5]} 29. f5 {[%clk
0:00:32.8]} 29... Rgg8 {[%clk 0:02:01.5]} 30. Rd2 {[%clk 0:00:26.3]} 30... Bb5+
{[%clk 0:02:00.3]} 31. Ke3 {[%clk 0:00:20.8]} 31... c4 {[%clk 0:01:57.8]} 32.
Kxe4 {[%clk 0:00:20.6]} 32... c3 {[%clk 0:01:50.9]} 33. Rc2 {[%clk 0:00:18.4]}
33... Rd8 {[%clk 0:01:48.4]} 34. Re1 {[%clk 0:00:16.2]} 34... Kf7 {[%clk
0:01:44]} 35. Kf3 {[%clk 0:00:12.3]} 35... Rge8 {[%clk 0:01:40.1]} 36. Rxe8
{[%clk 0:00:11.2]} 36... Rxe8 {[%clk 0:01:41]} 37. Rxc3 {[%clk 0:00:11.8]} 37...
Bc6+ {[%clk 0:01:40.3]} 38. Kf2 {[%clk 0:00:11.8]} 38... Bb8 {[%clk 0:01:39.9]}
39. Rd3 {[%clk 0:00:11]} 39... Ba7+ {[%clk 0:01:40.8]} 40. Kf1 {[%clk
0:00:10.3]} 40... Bb5 {[%clk 0:01:41.4]} 0-1

[Event "*** SCC Grand Prix: Titled Tuesday Blitz"]
[Site "Chess.com"]
[Date "2020.08.25"]
[Round "2"]
[White "Unkreativ3"]
[Black "pirulillo"]
[Result "1-0"]
[WhiteElo "2428"]
[BlackElo "2161"]
[TimeControl "180+1"]
[EndTime "10:18:15 PDT"]
[Termination "Unkreativ3 won by resignation"]

1. d4 {[%clk 0:02:59.9]} 1... Nf6 {[%clk 0:02:55.3]} 2. c4 {[%clk 0:02:59.9]}
2... g6 {[%clk 0:02:54.8]} 3. Nc3 {[%clk 0:02:59.8]} 3... Bg7 {[%clk 0:02:51.2]}
4. Nf3 {[%clk 0:02:59.8]} 4... O-O {[%clk 0:02:50.1]} 5. Bg5 {[%clk 0:02:59.9]}
5... c5 {[%clk 0:02:49.3]} 6. d5 {[%clk 0:03:00]} 6... d6 {[%clk 0:02:46.5]} 7.
e3 {[%clk 0:02:59.9]} 7... a6 {[%clk 0:02:44.9]} 8. a4 {[%clk 0:02:59.7]} 8...
Qa5 {[%clk 0:02:39.7]} 9. Nd2 {[%clk 0:02:59.2]} 9... h6 {[%clk 0:02:35.7]} 10.
Bh4 {[%clk 0:02:58.6]} 10... e6 {[%clk 0:02:19.9]} 11. Be2 {[%clk 0:02:56.6]}
11... exd5 {[%clk 0:02:19]} 12. cxd5 {[%clk 0:02:57.5]} 12... Qb4 {[%clk
0:02:17]} 13. Bc4 {[%clk 0:02:46.1]} 13... Qxb2 {[%clk 0:02:07.9]} 14. Rc1
{[%clk 0:02:45.7]} 14... Qb6 {[%clk 0:02:04]} 15. O-O {[%clk 0:02:44.4]} 15...
Nbd7 {[%clk 0:02:00.3]} 16. Rb1 {[%clk 0:02:38.2]} 16... Qc7 {[%clk 0:01:51.4]}
17. Qc2 {[%clk 0:02:32]} 17... Ne5 {[%clk 0:01:44]} 18. f4 {[%clk 0:02:30.9]}
18... Nxc4 {[%clk 0:01:37.2]} 19. Nxc4 {[%clk 0:02:31.8]} 19... Ng4 {[%clk
0:01:14.3]} 20. Rbe1 {[%clk 0:02:20.8]} 20... f5 {[%clk 0:01:04.4]} 21. h3
{[%clk 0:02:12.2]} 21... Nf6 {[%clk 0:01:01.9]} 22. e4 {[%clk 0:02:12.5]} 22...
Nxe4 {[%clk 0:00:59.8]} 23. Nxe4 {[%clk 0:02:12.3]} 23... fxe4 {[%clk
0:00:59.6]} 24. Qxe4 {[%clk 0:02:11.8]} 24... Bf5 {[%clk 0:00:59.1]} 25. Qe7
{[%clk 0:02:10.7]} 25... Qxe7 {[%clk 0:00:51.4]} 26. Bxe7 {[%clk 0:02:09.3]}
26... Bd3 {[%clk 0:00:45.1]} 27. Bxf8 {[%clk 0:01:47.3]} 27... Bxf8 {[%clk
0:00:30.4]} 28. Nb6 {[%clk 0:01:46.2]} 28... Rd8 {[%clk 0:00:28.5]} 29. Rf3
{[%clk 0:01:40.5]} 29... c4 {[%clk 0:00:28.2]} 30. Rc1 {[%clk 0:01:37]} 30...
Bg7 {[%clk 0:00:20.2]} 31. Kh2 {[%clk 0:01:30.8]} 31... Be4 {[%clk 0:00:18.2]}
32. Re3 {[%clk 0:01:27.3]} 32... Bf5 {[%clk 0:00:14.7]} 33. Nxc4 {[%clk
0:01:26.1]} 33... Rc8 {[%clk 0:00:14.4]} 34. Ree1 {[%clk 0:01:24.8]} 34... b6
{[%clk 0:00:14.3]} 35. Nxd6 {[%clk 0:01:23.9]} 35... b5 {[%clk 0:00:15.2]} 36.
Nxc8 {[%clk 0:01:22.3]} 1-0

[Event "*** SCC Grand Prix: Titled Tuesday Blitz"]
[Site "Chess.com"]
[Date "2020.08.25"]
[Round "2"]
[White "IngOscarArdila"]
[Black "davidkalashian"]
[Result "0-1"]
[WhiteElo "2201"]
[BlackElo "2616"]
[TimeControl "180+1"]
[EndTime "10:18:17 PDT"]
[Termination "davidkalashian won by resignation"]

1. d4 {[%clk 0:03:00.9]} 1... Nf6 {[%clk 0:02:59.1]} 2. c4 {[%clk 0:03:00.7]}
2... e6 {[%clk 0:02:59]} 3. Nc3 {[%clk 0:03:00.2]} 3... Bb4 {[%clk 0:02:58.3]}
4. Bd2 {[%clk 0:03:00.3]} 4... c5 {[%clk 0:02:57.1]} 5. e3 {[%clk 0:02:58.8]}
5... O-O {[%clk 0:02:55.6]} 6. a3 {[%clk 0:02:57.3]} 6... Bxc3 {[%clk 0:02:53]}
7. Bxc3 {[%clk 0:02:57.4]} 7... Ne4 {[%clk 0:02:52.9]} 8. Qc2 {[%clk 0:02:56.8]}
8... Nxc3 {[%clk 0:02:52]} 9. Qxc3 {[%clk 0:02:56.4]} 9... cxd4 {[%clk
0:02:48.9]} 10. exd4 {[%clk 0:02:56.3]} 10... d5 {[%clk 0:02:42.1]} 11. c5
{[%clk 0:02:53]} 11... Nc6 {[%clk 0:02:36.4]} 12. f4 {[%clk 0:02:48.4]} 12... a5
{[%clk 0:02:29.4]} 13. Nf3 {[%clk 0:02:37.2]} 13... b6 {[%clk 0:02:18.4]} 14.
Rc1 {[%clk 0:02:29.8]} 14... bxc5 {[%clk 0:02:15.1]} 15. dxc5 {[%clk 0:02:28.1]}
15... Ba6 {[%clk 0:02:00.8]} 16. Bxa6 {[%clk 0:02:24.2]} 16... Rxa6 {[%clk
0:02:01.7]} 17. O-O {[%clk 0:02:24]} 17... a4 {[%clk 0:01:59.8]} 18. Nd4 {[%clk
0:02:22.1]} 18... Na5 {[%clk 0:01:35.6]} 19. Rfd1 {[%clk 0:01:28.7]} 19... Nc4
{[%clk 0:01:30.2]} 20. Qb4 {[%clk 0:01:03.6]} 20... Qc7 {[%clk 0:01:21.9]} 21.
Nb5 {[%clk 0:01:01.3]} 21... Qxf4 {[%clk 0:01:17.7]} 22. Rxc4 {[%clk 0:00:36.4]}
22... dxc4 {[%clk 0:01:04.5]} 23. Nd6 {[%clk 0:00:35.7]} 23... Qe3+ {[%clk
0:00:56.7]} 24. Kh1 {[%clk 0:00:35.5]} 24... Rc6 {[%clk 0:00:55.5]} 25. Nxc4
{[%clk 0:00:17.2]} 25... Qxc5 {[%clk 0:00:54]} 26. Qxc5 {[%clk 0:00:15.3]} 26...
Rxc5 {[%clk 0:00:54.9]} 27. Nd6 {[%clk 0:00:15.2]} 27... Rd8 {[%clk 0:00:52.8]}
0-1

[Event "*** SCC Grand Prix: Titled Tuesday Blitz"]
[Site "Chess.com"]
[Date "2020.08.25"]
[Round "2"]
[White "bsnsun"]
[Black "parintele_chess"]
[Result "1-0"]
[WhiteElo "2409"]
[BlackElo "2141"]
[TimeControl "180+1"]
[EndTime "10:18:17 PDT"]
[Termination "bsnsun won by resignation"]

1. d4 {[%clk 0:03:00.8]} 1... Nf6 {[%clk 0:02:59.6]} 2. c4 {[%clk 0:03:00.8]}
2... g6 {[%clk 0:02:59.6]} 3. Nf3 {[%clk 0:03:01]} 3... Bg7 {[%clk 0:02:59.6]}
4. g3 {[%clk 0:03:01.7]} 4... O-O {[%clk 0:02:58.1]} 5. Bg2 {[%clk 0:03:02.2]}
5... c6 {[%clk 0:02:58.2]} 6. O-O {[%clk 0:03:01.4]} 6... d5 {[%clk 0:02:58.7]}
7. Qb3 {[%clk 0:03:01.1]} 7... Qb6 {[%clk 0:02:51.2]} 8. Rd1 {[%clk 0:03:00.6]}
8... Bf5 {[%clk 0:02:39.8]} 9. Nc3 {[%clk 0:02:36.6]} 9... Qxb3 {[%clk
0:02:26.9]} 10. axb3 {[%clk 0:02:36.7]} 10... Bc2 {[%clk 0:02:27.1]} 11. Re1
{[%clk 0:02:36]} 11... Bxb3 {[%clk 0:02:27.1]} 12. cxd5 {[%clk 0:02:36.3]} 12...
Nxd5 {[%clk 0:02:24]} 13. Nd2 {[%clk 0:02:32.2]} 13... Bc2 {[%clk 0:02:06]} 14.
Nxd5 {[%clk 0:02:24.2]} 14... cxd5 {[%clk 0:02:06.7]} 15. Bxd5 {[%clk
0:02:24.5]} 15... Nc6 {[%clk 0:02:07.2]} 16. e3 {[%clk 0:02:16.2]} 16... Rfc8
{[%clk 0:01:57.4]} 17. Nc4 {[%clk 0:02:06]} 17... e6 {[%clk 0:01:45.3]} 18. Bg2
{[%clk 0:01:53.9]} 18... Bd3 {[%clk 0:01:22.4]} 19. Nd6 {[%clk 0:01:52.8]} 19...
Rc7 {[%clk 0:00:56.4]} 20. Nxb7 {[%clk 0:01:51.9]} 20... Nb4 {[%clk 0:00:56.4]}
21. Nc5 {[%clk 0:01:49]} 21... Rac8 {[%clk 0:00:43.5]} 22. Bd2 {[%clk
0:01:36.6]} 22... Rxc5 {[%clk 0:00:37.7]} 23. Bxb4 {[%clk 0:01:22.7]} 23... Rc2
{[%clk 0:00:30.7]} 24. Bc3 {[%clk 0:01:20.1]} 24... a6 {[%clk 0:00:27.6]} 25.
Bf3 {[%clk 0:01:19.5]} 25... Bf8 {[%clk 0:00:18.9]} 26. Bd1 {[%clk 0:01:10.2]}
26... R2xc3 {[%clk 0:00:10.9]} 27. bxc3 {[%clk 0:01:10.3]} 27... Rxc3 {[%clk
0:00:11.8]} 28. Be2 {[%clk 0:01:11]} 28... Bxe2 {[%clk 0:00:10.4]} 29. Rxe2
{[%clk 0:01:11.9]} 29... Rc6 {[%clk 0:00:10.6]} 30. Rea2 {[%clk 0:01:12]} 1-0